[Event "Croatian junior league 2021"]
[Site "Rabac"]
[Date "2021.04.06"]
[Round "2.1"]
[White "Karlusic, Luka"]
[Black "Novosel, Marko"]
[Result "0-1"]
[ECO "D00"]
[WhiteElo "2047"]
[BlackElo "2130"]
[Annotator "ChessBase"]
[PlyCount "120"]
[EventDate "2021.04.06"]
[EventType "swiss"]
[EventCountry "CRO"]
[SourceTitle "playchess.com"]
[Source "ChessBase"]
[SourceQuality "1"]
[TimeControl "5400+30"]

1. d4 {[%emt 0:00:00]} Nf6 {[%emt 0:00:00]} 2. Nc3 {[%emt 0:00:00]} d5 {[%emt 0:00:00]} 3. Bf4 {[%emt 0:00:06]} c6 {[%emt 0:04:53]} 4. e3 {[%emt 0:00:14]} Bf5 {[%emt 0:00:54]} 5. f3 {[%emt 0:00:09]} h6 {[%emt 0:00:15]} 6. g4 {[%emt 0:00:45]} Bg6 {[%emt 0:03:06]} 7. h4 {[%emt 0:00:18]} e6 {[%emt 0:11:43]} 8. Bd3 {[%emt 0:00:08]} Bxd3 {[%emt 0:00:18]} 9. Qxd3 {[%emt 0:00:05]} Bd6 {[%emt 0:03:16]} 10. Nge2 {[%emt 0:00:14]} Na6 {[%emt 0:01:11]} 11. O-O-O {[%emt 0:07:00]} Bxf4 {[%emt 0:01:29]} 12. Nxf4 {[%emt 0:00:53]} Qa5 {[%emt 0:01:51]} 13. g5 {[%emt 0:08:55]} Nd7 {[%emt 0:10:32]} 14. g6 {[%emt 0:07:30]} O-O {[%emt 0:20:24]} 15. gxf7+ {[%emt 0:11:40]} Rxf7 {[%emt 0:00:04]} 16. Qg6 {[%emt 0:00:44]} e5 {[%emt 0:07:23]} 17. Ne6 {[%emt 0:13:29]} Nf8 {[%emt 0:26:18]} 18. Nxf8 {[%emt 0:00:38]} Raxf8 {[%emt 0:00:16]} 19. Rhg1 {[%emt 0:06:10]} Qc7 {[%emt 0:02:08]} 20. Qxh6 {[%emt 0:04:34]} exd4 {[%emt 0:01:08]} 21. Rxd4 {[%emt 0:07:59]} Rxf3 {[%emt 0:00:26]} 22. Qe6+ {[%emt 0:03:37]} Qf7 {[%emt 0:00:42]} 23. Qe5 {[%emt 0:02:48]} Qf6 {[%emt 0:01:18]} 24. Qh2 {[%emt 0:02:49]} Rf1+ {[%emt 0:01:18]} 25. Nd1 {[%emt 0:03:33]} Rxg1 {[%emt 0:00:47]} 26. Qxg1 {[%emt 0:00:02]} Nc5 {[%emt 0:00:42]} 27. Rg4 {[%emt 0:00:28]} Ne4 {[%emt 0:00:25]} 28. Rg6 {[%emt 0:01:02]} Qe5 {[%emt 0:00:17]} 29. h5 {[%emt 0:00:44]} Kh7 {[%emt 0:00:19]} 30. Qg4 {[%emt 0:02:11]} Rf1 {[%emt 0:00:55]} 31. Qe2 {[%emt 0:06:43]} Rf5 {[%emt 0:00:15]} 32. Qg4 {[%emt 0:00:45]} Rf1 {[%emt 0:00:18]} 33. Qe2 {[%emt 0:00:07]} Rh1 {[%emt 0:00:18]} 34. Qg2 {[%emt 0:03:19]} Rxd1+ {[%emt 0:00:27]} 35. Kxd1 {[%emt 0:00:04]} Qxh5+ {[%emt 0:00:07]} 36. Ke1 {[%emt 0:00:12]} Qxg6 {[%emt 0:00:07]} 37. Qh3+ {[%emt 0:00:02]} Qh6 {[%emt 0:00:17]} 38. Qf5+ {[%emt 0:00:02]} g6 {[%emt 0:00:08]} 39. Qd7+ {[%emt 0:00:04]} Qg7 {[%emt 0:00:03]} 40. Qh3+ {[%emt 0:00:22]} Kg8 {[%emt 0:00:05]} 41. c4 {[%emt 0:00:26]} Qf7 {[%emt 0:00:12]} 42. Qg2 {[%emt 0:00:15]} Qf5 {[%emt 0:00:12]} 43. cxd5 {[%emt 0:00:13]} cxd5 {[%emt 0:00:01]} 44. Qh2 {[%emt 0:00:13]} Qc8 {[%emt 0:01:34]} 45. Kd1 {[%emt 0:00:15]} Qg4+ {[%emt 0:00:27]} 46. Kc2 {[%emt 0:00:04]} Qc8+ {[%emt 0:01:15]} 47. Kd1 {[%emt 0:00:06]} Qd7 {[%emt 0:01:51]} 48. Qb8+ {[%emt 0:00:28]} Kg7 {[%emt 0:00:10]} 49. Qe5+ {[%emt 0:00:04]} Nf6 {[%emt 0:00:05]} 50. Kd2 {[%emt 0:00:19]} Kf7 {[%emt 0:00:07]} 51. Qf4 {[%emt 0:00:15]} g5 {[%emt 0:00:15]} 52. Qf3 {[%emt 0:00:25]} Qg4 {[%emt 0:00:47]} 53. Qf1 {[%emt 0:00:20]} Qb4+ {[%emt 0:00:12]} 54. Kd1 {[%emt 0:00:49]} Qxb2 {[%emt 0:01:04]} 55. Qf5 {[%emt 0:00:00]} Qa1+ {[%emt 0:00:12]} 56. Ke2 {[%emt 0:00:00]} Qxa2+ {[%emt 0:00:07]} 57. Kf3 {[%emt 0:00:00]} g4+ {[%emt 0:00:58]} 58. Kg3 {[%emt 0:00:00]} Qc4 {[%emt 0:00:24]} 59. Kh4 {[%emt 0:00:00]} g3+ {[%emt 0:00:19]} 60. Kxg3 {[%emt 0:00:07]} Qg4+ {[%emt 0:00:05]} 0-1

[Event "Croatian junior league 2021"]
[Site "Rabac"]
[Date "2021.04.06"]
[Round "2.2"]
[White "Klapac, Patrik"]
[Black "Mahecic, Lovre"]
[Result "0-1"]
[ECO "C50"]
[WhiteElo "1780"]
[BlackElo "1958"]
[Annotator "NA"]
[PlyCount "48"]
[EventDate "2021.04.06"]
[EventType "swiss"]
[EventCountry "CRO"]
[SourceTitle "playchess.com"]
[Source "ChessBase"]
[SourceQuality "1"]
[TimeControl "5400+30"]

1. e4 {[%emt 0:00:00]} e5 {[%emt 0:00:00]} 2. Nf3 {[%emt 0:00:00]} Nc6 {[%emt 0:00:00]} 3. Bc4 {[%emt 0:00:00]} Bc5 {[%emt 0:00:00]} 4. d3 {[%emt 0:00:00]} h6 {[%emt 0:00:00]} 5. O-O {[%emt 0:00:03]} d6 {[%emt 0:00:00]} 6. h3 {[%emt 0:00:03]} Nf6 {[%emt 0:00:03]} 7. Nc3 {[%emt 0:00:07]} g5 {[%emt 0:00:09]} 8. Nh2 {[%emt 0:00:55]} g4 {[%emt 0:00:07]} 9. hxg4 {[%emt 0:00:19]} Rg8 {[%emt 0:00:06]} 10. g5 {[%emt 0:04:13]} hxg5 {[%emt 0:00:11]} 11. Be3 {[%emt 0:04:34]} g4 {[%emt 0:00:40]} 12. Bxc5 {[%emt 0:02:48]} dxc5 {[%emt 0:00:19]} 13. Nd5 {[%emt 0:00:57]} Nxd5 {[%emt 0:01:38]} 14. exd5 {[%emt 0:00:39]} Nd4 {[%emt 0:12:48]} 15. Re1 {[%emt 0:01:45]} Qh4 {[%emt 0:06:55]} 16. c3 {[%emt 0:04:28]} Rh8 {[%emt 0:06:11]} 17. cxd4 {[%emt 0:05:38]} Qxh2+ {[%emt 0:00:54]} 18. Kf1 {[%emt 0:00:03]} cxd4 {[%emt 0:04:30]} 19. Qd2 {[%emt 0:08:46]} Qh1+ {[%emt 0:01:38]} 20. Ke2 {[%emt 0:00:07]} Qxg2 {[%emt 0:00:08]} 21. Kd1 {[%emt 0:00:12]} f6 {[%emt 0:04:50]} 22. Rc1 {[%emt 0:01:30]} g3 {[%emt 0:01:34]} 23. fxg3 {[%emt 0:06:00]} Bg4+ {[%emt 0:01:10]} 24. Kc2 {[%emt 0:00:17]} Qxd2+ {[%emt 0:00:06]} 0-1

[Event "Croatian junior league 2021"]
[Site "Rabac"]
[Date "2021.04.06"]
[Round "2.3"]
[White "Novosel, Lovro"]
[Black "Jakovic, Roko"]
[Result "1-0"]
[ECO "D02"]
[WhiteElo "1997"]
[BlackElo "1846"]
[Annotator "NA"]
[PlyCount "116"]
[EventDate "2021.04.06"]
[EventType "swiss"]
[EventCountry "CRO"]
[SourceTitle "playchess.com"]
[Source "ChessBase"]
[SourceQuality "1"]
[TimeControl "5400+30"]

1. Nf3 {[%emt 0:00:00]} c5 {[%emt 0:00:47]} 2. g3 {[%emt 0:01:51]} Nc6 {[%emt 0:00:12]} 3. d4 {[%emt 0:00:20]} d5 {[%emt 0:01:32]} 4. Bg2 {[%emt 0:01:10]} Nf6 {[%emt 0:02:44]} 5. O-O {[%emt 0:01:40]} e6 {[%emt 0:08:56]} 6. b3 {[%emt 0:01:51]} Be7 {[%emt 0:01:11]} 7. Bb2 {[%emt 0:00:21]} O-O {[%emt 0:01:52]} 8. Nbd2 {[%emt 0:01:10]} b6 {[%emt 0:03:17]} 9. c4 {[%emt 0:02:16]} Bb7 {[%emt 0:01:31]} 10. cxd5 {[%emt 0:04:17]} exd5 {[%emt 0:01:14]} 11. Rc1 {[%emt 0:03:20]} cxd4 {[%emt 0:11:17]} 12. Nxd4 {[%emt 0:01:19]} Nxd4 {[%emt 0:00:56]} 13. Bxd4 {[%emt 0:00:08]} Rc8 {[%emt 0:01:11]} 14. Rxc8 {[%emt 0:01:28]} Qxc8 {[%emt 0:00:30]} 15. Qb1 {[%emt 0:01:53]} Qe6 {[%emt 0:08:28]} 16. Nf3 {[%emt 0:02:36]} h6 {[%emt 0:02:07]} 17. Qb2 {[%emt 0:03:10]} Rc8 {[%emt 0:11:21]} 18. Rd1 {[%emt 0:02:38]} Qf5 {[%emt 0:03:39]} 19. Bc3 {[%emt 0:02:58]} b5 {[%emt 0:09:48]} 20. Nd4 {[%emt 0:04:44]} Qd7 {[%emt 0:00:15]} 21. a3 {[%emt 0:01:55]} a6 {[%emt 0:00:48]} 22. Bb4 {[%emt 0:01:33]} Bxb4 {[%emt 0:03:10]} 23. axb4 {[%emt 0:00:53]} Qc7 {[%emt 0:06:10]} 24. Qa3 {[%emt 0:06:40]} Ne4 {[%emt 0:02:31]} 25. e3 g6 {[%emt 0:07:10]} 26. Bh3 {[%emt 0:07:57]} Rd8 {[%emt 0:00:00]} 27. Rc1 {[%emt 0:01:08]} Qd6 {[%emt 0:00:00]} 28. Bg2 {[%emt 0:02:13]} Rc8 {[%emt 0:00:00]} 29. Bxe4 {[%emt 0:08:29]} Rxc1+ {[%emt 0:00:00]} 30. Qxc1 {[%emt 0:00:04]} dxe4 {[%emt 0:00:00]} 31. Qc3 {[%emt 0:00:44]} Qd7 {[%emt 0:02:28]} 32. Qc5 {[%emt 0:01:06]} Qd5 {[%emt 0:03:55]} 33. Qe7 {[%emt 0:02:35]} Kg7 {[%emt 0:00:42]} 34. h4 {[%emt 0:01:42]} Bc8 {[%emt 0:01:15]} 35. Qa7 {[%emt 0:03:41]} Qd7 {[%emt 0:03:31]} 36. Qc5 {[%emt 0:00:25]} Bb7 {[%emt 0:00:50]} 37. Qe5+ {[%emt 0:00:22]} Kg8 {[%emt 0:00:31]} 38. h5 {[%emt 0:00:10]} Bd5 {[%emt 0:01:44]} 39. Kg2 {[%emt 0:05:31]} Kh7 {[%emt 0:01:14]} 40. Qf6 {[%emt 0:01:26]} Qg4 {[%emt 0:00:38]} 41. Qxa6 {[%emt 0:02:57]} Be6 {[%emt 0:00:31]} 42. hxg6+ {[%emt 0:00:37]} Kxg6 {[%emt 0:00:22]} 43. Qxb5 {[%emt 0:00:32]} Qh3+ {[%emt 0:00:41]} 44. Kg1 {[%emt 0:00:06]} Qg4 {[%emt 0:00:27]} 45. Qe5 {[%emt 0:01:02]} Bd7 {[%emt 0:00:32]} 46. b5 {[%emt 0:00:23]} Qd1+ {[%emt 0:00:20]} 47. Kg2 {[%emt 0:00:07]} Bh3+ {[%emt 0:00:39]} 48. Kh2 {[%emt 0:00:09]} Qg4 {[%emt 0:00:28]} 49. Nc6 {[%emt 0:01:17]} Bf1 {[%emt 0:00:27]} 50. Ne7+ {[%emt 0:00:08]} Kh7 {[%emt 0:00:13]} 51. Kg1 {[%emt 0:00:56]} Bh3 {[%emt 0:00:15]} 52. Qf4 {[%emt 0:01:47]} Qe6 {[%emt 0:00:07]} 53. Nc6 {[%emt 0:00:28]} Qd5 {[%emt 0:01:04]} 54. Nd4 {[%emt 0:00:32]} Be6 {[%emt 0:00:52]} 55. b6 {[%emt 0:00:30]} Bc8 {[%emt 0:00:31]} 56. Kg2 {[%emt 0:00:30]} Qd7 {[%emt 0:00:33]} 57. Qf5+ {[%emt 0:00:51]} Qxf5 {[%emt 0:00:23]} 58. Nxf5 {[%emt 0:00:01]} Bd7 {[%emt 0:00:39]} 1-0

[Event "Croatian junior league 2021"]
[Site "Rabac"]
[Date "2021.04.06"]
[Round "2.4"]
[White "Veverec, Ivo"]
[Black "Moric, Ivan"]
[Result "1-0"]
[ECO "E90"]
[WhiteElo "1786"]
[BlackElo "1907"]
[Annotator "NA"]
[PlyCount "143"]
[EventDate "2021.04.06"]
[EventType "swiss"]
[EventCountry "CRO"]
[SourceTitle "playchess.com"]
[Source "ChessBase"]
[SourceQuality "1"]
[TimeControl "5400+30"]

1. Nf3 {[%emt 0:00:00]} Nf6 {[%emt 0:00:00]} 2. c4 {[%emt 0:00:15]} g6 {[%emt 0:00:16]} 3. d4 {[%emt 0:00:17]} Bg7 {[%emt 0:00:13]} 4. Nc3 {[%emt 0:00:50]} O-O {[%emt 0:00:16]} 5. e4 {[%emt 0:01:20]} d6 {[%emt 0:00:18]} 6. Bd3 {[%emt 0:00:57]} e5 {[%emt 0:00:41]} 7. d5 {[%emt 0:00:49]} a5 {[%emt 0:01:24]} 8. O-O {[%emt 0:01:10]} Na6 {[%emt 0:00:52]} 9. a3 {[%emt 0:04:07]} Nc5 {[%emt 0:04:21]} 10. Be3 {[%emt 0:03:44]} Nfd7 {[%emt 0:05:18]} 11. Bc2 {[%emt 0:02:38]} f5 {[%emt 0:07:51]} 12. b4 {[%emt 0:05:05]} Nxe4 {[%emt 0:06:47]} 13. Bxe4 {[%emt 0:02:08]} fxe4 {[%emt 0:00:14]} 14. Nxe4 {[%emt 0:00:14]} h6 {[%emt 0:09:31]} 15. Qd2 {[%emt 0:02:01]} Kh7 {[%emt 0:03:44]} 16. bxa5 {[%emt 0:03:03]} Nf6 {[%emt 0:02:05]} 17. Ng3 {[%emt 0:04:22]} Ng4 {[%emt 0:07:38]} 18. Rab1 {[%emt 0:03:59]} Nxe3 {[%emt 0:08:41]} 19. fxe3 {[%emt 0:01:02]} c5 {[%emt 0:05:37]} 20. dxc6 {[%emt 0:01:59]} bxc6 {[%emt 0:00:07]} 21. Rb6 {[%emt 0:04:42]} Qc7 {[%emt 0:01:48]} 22. Rd1 {[%emt 0:06:11]} Bg4 {[%emt 0:05:08]} 23. Rf1 {[%emt 0:22:39]} Be6 {[%emt 0:02:22]} 24. Rc1 {[%emt 0:06:13]} Rfd8 {[%emt 0:01:46]} 25. h3 {[%emt 0:01:58]} d5 {[%emt 0:11:16]} 26. cxd5 {[%emt 0:00:39]} Bxd5 {[%emt 0:00:14]} 27. Qe1 {[%emt 0:01:31]} e4 {[%emt 0:03:13]} 28. Nh2 {[%emt 0:03:49]} Qa7 {[%emt 0:02:23]} 29. Rb4 {[%emt 0:01:18]} Qxa5 {[%emt 0:00:51]} 30. Nxe4 {[%emt 0:01:11]} Qxa3 {[%emt 0:01:34]} 31. Nf2 {[%emt 0:03:05]} Re8 {[%emt 0:03:43]} 32. e4 {[%emt 0:00:47]} Ra4 {[%emt 0:01:00]} 33. Rcb1 {[%emt 0:03:28]} Rxb4 {[%emt 0:01:23]} 34. Qxb4 {[%emt 0:00:20]} Qxb4 {[%emt 0:00:34]} 35. Rxb4 {[%emt 0:00:02]} Be6 {[%emt 0:01:02]} 36. Nhg4 {[%emt 0:01:50]} c5 {[%emt 0:00:55]} 37. Rb6 {[%emt 0:02:25]} Bd4 {[%emt 0:00:50]} 38. Kf1 {[%emt 0:04:01]} h5 {[%emt 0:01:22]} 39. Nh2 {[%emt 0:00:09]} Rf8 {[%emt 0:00:27]} 40. Nf3 {[%emt 0:00:18]} Bc4+ {[%emt 0:00:44]} 41. Ke1 {[%emt 0:00:02]} Ra8 {[%emt 0:00:50]} 42. Nxd4 {[%emt 0:00:44]} cxd4 {[%emt 0:00:03]} 43. Rb4 {[%emt 0:00:17]} Ra1+ {[%emt 0:00:32]} 44. Nd1 {[%emt 0:00:26]} Be6 {[%emt 0:00:44]} 45. Rxd4 {[%emt 0:00:10]} Kg7 {[%emt 0:00:31]} 46. Ke2 {[%emt 0:01:26]} Kf6 {[%emt 0:00:14]} 47. Nf2 {[%emt 0:00:58]} Ke5 {[%emt 0:00:24]} 48. Rb4 {[%emt 0:01:19]} Ra2+ {[%emt 0:00:14]} 49. Ke3 {[%emt 0:00:04]} Ra3+ {[%emt 0:00:53]} 50. Nd3+ {[%emt 0:00:09]} Kf6 {[%emt 0:00:20]} 51. e5+ {[%emt 0:00:35]} Ke7 {[%emt 0:00:30]} 52. g4 {[%emt 0:01:06]} hxg4 {[%emt 0:00:19]} 53. hxg4 {[%emt 0:00:02]} Bd7 {[%emt 0:01:00]} 54. Rd4 {[%emt 0:00:44]} Bb5 {[%emt 0:00:39]} 55. Ke4 {[%emt 0:00:44]} Bxd3+ {[%emt 0:00:22]} 56. Rxd3 {[%emt 0:00:19]} Ra4+ {[%emt 0:00:12]} 57. Rd4 {[%emt 0:00:24]} Ra5 {[%emt 0:00:31]} 58. Kf4 {[%emt 0:00:37]} Ke6 {[%emt 0:00:41]} 59. Rd6+ {[%emt 0:00:25]} Kf7 {[%emt 0:00:13]} 60. Rf6+ {[%emt 0:00:45]} Kg7 {[%emt 0:00:12]} 61. Rd6 {[%emt 0:01:27]} Kf7 {[%emt 0:00:23]} 62. Ke4 {[%emt 0:00:14]} Ra4+ {[%emt 0:00:27]} 63. Rd4 {[%emt 0:00:41]} Ra5 {[%emt 0:00:28]} 64. Kf4 {[%emt 0:00:26]} Ke6 {[%emt 0:00:24]} 65. Re4 {[%emt 0:00:10]} Ra8 {[%emt 0:01:45]} 66. Kg5 {[%emt 0:00:25]} Kf7 {[%emt 0:00:43]} 67. e6+ {[%emt 0:00:13]} Kg7 {[%emt 0:00:31]} 68. e7 {[%emt 0:00:39]} Kf7 {[%emt 0:00:44]} 69. e8=Q+ {[%emt 0:00:26]} Rxe8 {[%emt 0:00:09]} 70. Rxe8 {[%emt 0:00:04]} Kxe8 {[%emt 0:00:09]} 71. Kxg6 {[%emt 0:00:04]} Ke7 {[%emt 0:00:31]} 72. g5 {[%emt 0:00:31]} 1-0

[Event "Croatian junior league 2021"]
[Site "Rabac"]
[Date "2021.04.06"]
[Round "2.5"]
[White "Vucenovic, Damian"]
[Black "Begic, Domagoj"]
[Result "1-0"]
[ECO "B01"]
[WhiteElo "1980"]
[BlackElo "1706"]
[Annotator "NA"]
[PlyCount "51"]
[EventDate "2021.04.06"]
[EventType "swiss"]
[EventCountry "CRO"]
[SourceTitle "playchess.com"]
[Source "ChessBase"]
[SourceQuality "1"]
[TimeControl "5400+30"]

1. e4 {[%emt 0:00:29]} d5 {[%emt 0:00:00]} 2. exd5 {[%emt 0:00:33]} Qxd5 {[%emt 0:00:00]} 3. Nc3 {[%emt 0:00:47]} Qd8 {[%emt 0:00:03]} 4. Bc4 {[%emt 0:00:56]} Nf6 {[%emt 0:00:36]} 5. Nf3 {[%emt 0:01:07]} Bf5 {[%emt 0:00:14]} 6. d3 {[%emt 0:04:35]} e6 {[%emt 0:00:24]} 7. Bf4 {[%emt 0:02:08]} c6 {[%emt 0:00:32]} 8. Qe2 {[%emt 0:01:40]} Be7 {[%emt 0:00:33]} 9. O-O-O {[%emt 0:02:14]} b5 {[%emt 0:00:52]} 10. Bb3 {[%emt 0:01:14]} Nbd7 {[%emt 0:00:46]} 11. Nd4 {[%emt 0:06:11]} Rc8 {[%emt 0:02:04]} 12. Nxf5 {[%emt 0:02:11]} exf5 {[%emt 0:00:09]} 13. Rhe1 {[%emt 0:05:24]} Kf8 {[%emt 0:00:42]} 14. d4 {[%emt 0:02:56]} Bb4 {[%emt 0:03:35]} 15. Rd3 {[%emt 0:05:24]} Bxc3 {[%emt 0:06:43]} 16. Rxc3 {[%emt 0:02:49]} Nb6 {[%emt 0:00:59]} 17. Re3 {[%emt 0:01:46]} a5 {[%emt 0:03:49]} 18. Re7 {[%emt 0:02:57]} Nbd5 {[%emt 0:01:09]} 19. Bxd5 {[%emt 0:00:28]} Qxd5 {[%emt 0:03:37]} 20. f3 {[%emt 0:10:09]} h6 {[%emt 0:02:39]} 21. Be5 {[%emt 0:03:48]} Nd7 {[%emt 0:08:27]} 22. Bd6 {[%emt 0:01:52]} Kg8 {[%emt 0:01:37]} 23. Rxd7 {[%emt 0:00:15]} Qxa2 {[%emt 0:05:48]} 24. Qe5 {[%emt 0:02:30]} b4 {[%emt 0:05:01]} 25. Qxf5 {[%emt 0:01:05]} Ra8 {[%emt 0:00:52]} 26. Rde7 {[%emt 0:01:03]} 1-0

[Event "Croatian junior league 2021"]
[Site "Rabac"]
[Date "2021.04.06"]
[Round "2.9"]
[White "Kovac, Petar"]
[Black "Jakrlin, Mihael"]
[Result "1-0"]
[ECO "A65"]
[WhiteElo "2089"]
[BlackElo "2106"]
[Annotator "ChessBase"]
[PlyCount "71"]
[EventDate "2021.04.06"]
[EventType "swiss"]
[EventCountry "CRO"]
[SourceTitle "playchess.com"]
[Source "ChessBase"]
[SourceQuality "1"]
[TimeControl "5400+30"]

1. d4 {[%emt 0:00:00]} Nf6 {[%emt 0:01:42]} 2. c4 {[%emt 0:00:00]} g6 {[%emt 0:00:06]} 3. Nc3 {[%emt 0:00:00]} Bg7 {[%emt 0:00:06]} 4. e4 {[%emt 0:00:00]} d6 {[%emt 0:00:02]} 5. f3 {[%emt 0:00:00]} O-O {[%emt 0:00:07]} 6. Bg5 {[%emt 0:00:04]} c5 {[%emt 0:01:06]} 7. d5 {[%emt 0:00:20]} e6 {[%emt 0:00:07]} 8. Qd2 {[%emt 0:01:55]} exd5 {[%emt 0:01:21]} 9. cxd5 {[%emt 0:00:15]} a6 {[%emt 0:00:21]} 10. a4 {[%emt 0:00:05]} Nbd7 {[%emt 0:00:09]} 11. Nh3 {[%emt 0:01:54]} Re8 {[%emt 0:03:19]} 12. Nf2 {[%emt 0:01:36]} Qc7 {[%emt 0:06:12]} 13. Be2 {[%emt 0:02:52]} Rb8 {[%emt 0:04:16]} 14. O-O {[%emt 0:04:44]} b6 {[%emt 0:04:10]} 15. Rfc1 {[%emt 0:03:25]} Bb7 {[%emt 0:00:31]} 16. Rab1 {[%emt 0:05:34]} Rbc8 {[%emt 0:07:00]} 17. b3 {[%emt 0:07:59]} Qb8 {[%emt 0:01:20]} 18. Nfd1 {[%emt 0:04:28]} Ne5 {[%emt 0:06:24]} 19. Nb2 {[%emt 0:02:05]} Rc7 {[%emt 0:09:46]} 20. Re1 {[%emt 0:18:24]} h5 {[%emt 0:01:23]} 21. Rbd1 {[%emt 0:10:15]} Nh7 {[%emt 0:02:19]} 22. Bh6 {[%emt 0:04:36]} Bh8 {[%emt 0:01:03]} 23. h3 {[%emt 0:09:54]} Rce7 {[%emt 0:00:48]} 24. f4 {[%emt 0:04:54]} Nd7 {[%emt 0:00:17]} 25. Bd3 {[%emt 0:01:21]} Bd4+ {[%emt 0:04:50]} 26. Kh1 {[%emt 0:00:40]} Ndf6 {[%emt 0:00:25]} 27. Nc4 {[%emt 0:01:49]} Bc8 {[%emt 0:00:16]} 28. e5 {[%emt 0:03:35]} Bxc3 {[%emt 0:03:47]} 29. Qxc3 {[%emt 0:00:06]} Nxd5 {[%emt 0:00:05]} 30. Qb2 {[%emt 0:01:38]} dxe5 {[%emt 0:00:24]} 31. Bxg6 {[%emt 0:02:05]} fxg6 {[%emt 0:01:00]} 32. Rxd5 {[%emt 0:00:06]} b5 {[%emt 0:09:13]} 33. axb5 {[%emt 0:01:18]} axb5 {[%emt 0:00:41]} 34. Nxe5 {[%emt 0:03:08]} Nf8 {[%emt 0:07:35]} 35. Kh2 {[%emt 0:02:49]} Qb6 {[%emt 0:00:48]} 36. Nf7 {[%emt 0:01:27]} 1-0

[Event "Croatian junior league 2021"]
[Site "Rabac"]
[Date "2021.04.06"]
[Round "2.10"]
[White "Troselj, Ivan"]
[Black "Stjepic, Borna"]
[Result "1-0"]
[ECO "B07"]
[WhiteElo "1962"]
[BlackElo "1825"]
[Annotator "ChessBase"]
[PlyCount "147"]
[EventDate "2021.04.06"]
[EventType "swiss"]
[EventCountry "CRO"]
[SourceTitle "playchess.com"]
[Source "ChessBase"]
[SourceQuality "1"]
[TimeControl "5400+30"]

1. e4 {[%emt 0:00:18]} g6 {[%emt 0:00:00]} 2. d4 {[%emt 0:00:17]} Bg7 {[%emt 0:00:00]} 3. Nf3 {[%emt 0:00:20]} d6 {[%emt 0:00:00]} 4. c3 {[%emt 0:00:49]} Nf6 {[%emt 0:00:34]} 5. Bd3 {[%emt 0:00:20]} O-O {[%emt 0:01:48]} 6. O-O {[%emt 0:00:16]} Bg4 {[%emt 0:02:14]} 7. h3 {[%emt 0:00:10]} Bxf3 {[%emt 0:00:20]} 8. Qxf3 {[%emt 0:00:03]} Nbd7 {[%emt 0:03:47]} 9. Bg5 {[%emt 0:02:32]} e5 {[%emt 0:01:16]} 10. Re1 {[%emt 0:01:13]} Qe8 {[%emt 0:04:07]} 11. Na3 {[%emt 0:02:13]} a6 {[%emt 0:03:36]} 12. Rad1 {[%emt 0:01:09]} h6 {[%emt 0:02:03]} 13. Bc1 {[%emt 0:00:25]} Nh7 {[%emt 0:05:03]} 14. Qg3 {[%emt 0:02:38]} h5 {[%emt 0:06:13]} 15. Bc4 {[%emt 0:03:49]} Kh8 {[%emt 0:02:12]} 16. f4 {[%emt 0:01:09]} Qe7 {[%emt 0:05:11]} 17. f5 {[%emt 0:02:05]} g5 {[%emt 0:02:59]} 18. Qf3 {[%emt 0:04:22]} Ndf6 {[%emt 0:01:00]} 19. Bb3 {[%emt 0:04:31]} a5 {[%emt 0:03:14]} 20. dxe5 {[%emt 0:09:35]} Qxe5 {[%emt 0:05:57]} 21. Nc4 {[%emt 0:00:29]} Qc5+ {[%emt 0:00:47]} 22. Be3 {[%emt 0:00:09]} Qb5 {[%emt 0:00:05]} 23. Bd4 {[%emt 0:04:39]} a4 {[%emt 0:04:07]} 24. Na3 {[%emt 0:00:09]} Qd7 {[%emt 0:03:09]} 25. Bc2 {[%emt 0:00:41]} Qc6 {[%emt 0:05:21]} 26. e5 {[%emt 0:07:45]} Qxf3 {[%emt 0:01:11]} 27. gxf3 {[%emt 0:00:02]} dxe5 {[%emt 0:00:58]} 28. Rxe5 {[%emt 0:01:06]} Rfe8 {[%emt 0:03:57]} 29. Nb5 {[%emt 0:01:27]} Ra5 {[%emt 0:06:20]} 30. Rxe8+ {[%emt 0:04:56]} Nxe8 {[%emt 0:00:05]} 31. Re1 {[%emt 0:00:11]} Bxd4+ {[%emt 0:04:54]} 32. Nxd4 {[%emt 0:00:04]} Nd6 {[%emt 0:00:52]} 33. Re7 {[%emt 0:00:15]} c5 {[%emt 0:00:37]} 34. Ne2 {[%emt 0:03:38]} Nf6 {[%emt 0:02:38]} 35. Ng3 {[%emt 0:05:00]} Rb5 {[%emt 0:04:24]} 36. b3 {[%emt 0:00:39]} axb3 {[%emt 0:00:57]} 37. axb3 {[%emt 0:00:08]} Kg7 {[%emt 0:00:42]} 38. Kf2 {[%emt 0:03:04]} h4 {[%emt 0:00:47]} 39. Ne4 {[%emt 0:01:31]} Nfxe4+ {[%emt 0:03:51]} 40. fxe4 {[%emt 0:00:12]} Kf6 {[%emt 0:00:04]} 41. Rc7 {[%emt 0:00:40]} Ra5 {[%emt 0:03:44]} 42. Ke3 {[%emt 0:02:08]} Ra2 {[%emt 0:00:36]} 43. Bd1 {[%emt 0:00:33]} Rg2 {[%emt 0:01:32]} 44. Rxc5 {[%emt 0:00:56]} Rg3+ {[%emt 0:00:08]} 45. Kd4 {[%emt 0:00:39]} Nxe4 {[%emt 0:02:07]} 46. Kxe4 {[%emt 0:00:27]} Rxh3 {[%emt 0:00:01]} 47. c4 {[%emt 0:02:31]} Rg3 {[%emt 0:00:38]} 48. Rd5 {[%emt 0:01:36]} h3 {[%emt 0:01:05]} 49. Rd2 {[%emt 0:12:57]} Rg2 {[%emt 0:00:20]} 50. Rd6+ {[%emt 0:00:02]} Kg7 {[%emt 0:00:10]} 51. Bf3 {[%emt 0:00:17]} Rg1 {[%emt 0:00:29]} 52. Ke3 {[%emt 0:00:31]} h2 {[%emt 0:00:35]} 53. Bxb7 {[%emt 0:00:11]} g4 {[%emt 0:02:05]} 54. Rd2 {[%emt 0:00:48]} h1=Q {[%emt 0:00:53]} 55. Bxh1 {[%emt 0:00:02]} Rxh1 {[%emt 0:00:00]} 56. Kf4 {[%emt 0:01:50]} Rg1 {[%emt 0:01:21]} 57. Rd3 {[%emt 0:01:48]} Kf6 {[%emt 0:00:02]} 58. Rc3 {[%emt 0:01:23]} Rd1 {[%emt 0:00:30]} 59. Kxg4 {[%emt 0:00:35]} Rd4+ {[%emt 0:00:01]} 60. Kf3 {[%emt 0:00:20]} Kxf5 {[%emt 0:00:02]} 61. b4 {[%emt 0:00:42]} Ke5 {[%emt 0:00:53]} 62. b5 {[%emt 0:02:06]} Kd6 {[%emt 0:00:53]} 63. c5+ {[%emt 0:00:07]} Kc7 {[%emt 0:00:13]} 64. c6 {[%emt 0:00:50]} Rb4 {[%emt 0:00:19]} 65. Rc5 {[%emt 0:00:12]} f6 {[%emt 0:00:48]} 66. Ke3 {[%emt 0:00:31]} Kb6 {[%emt 0:01:18]} 67. c7 {[%emt 0:00:30]} Kxc5 {[%emt 0:00:04]} 68. c8=Q+ {[%emt 0:00:07]} Kxb5 {[%emt 0:00:10]} 69. Kd3 {[%emt 0:00:18]} Rb3+ {[%emt 0:00:29]} 70. Kd4 {[%emt 0:00:10]} Rb4+ {[%emt 0:00:10]} 71. Kd5 {[%emt 0:00:05]} Ka4 {[%emt 0:00:22]} 72. Qc3 {[%emt 0:01:19]} f5 {[%emt 0:00:21]} 73. Kc5 {[%emt 0:00:34]} Re4 {[%emt 0:00:29]} 74. Qb2 {[%emt 0:00:24]} 1-0